[Event "Titled Tuesday Blitz October 31 Early 2023"]
[White "Kahlert, Thomas"]
[Black "Reprintsev, Alexander"]
[WhiteFideId "4625242"]
[BlackFideId "14100541"]
[WhiteElo "2388"]
[BlackElo "2501"]
[Result "1-0"]
[Round "11"]
[TimeControl "180+1"]
[Date "2023.10.31"]
[WhiteClock "0:00:05"]
[BlackClock "0:00:06"]
[Board "79"]

1. c4 {[%clk 0:03:00]}  e5 {[%clk 0:02:55]} 2. Nc3 {[%clk 0:02:59]}  Nf6 {[%clk 0:02:55]} 3. Nf3 {[%clk 0:02:59]}  e4 {[%clk 0:02:55]} 4. Nd4 {[%clk 0:02:59]}  c5 {[%clk 0:02:50]} 5. Nc2 {[%clk 0:02:57]}  b6 {[%clk 0:02:44]} 6. g3 {[%clk 0:02:52]}  Bb7 {[%clk 0:02:44]} 7. Bg2 {[%clk 0:02:52]}  Bd6 {[%clk 0:02:39]} 8. O-O {[%clk 0:02:50]}  O-O {[%clk 0:02:38]} 9. d3 {[%clk 0:02:49]}  Re8 {[%clk 0:02:21]} 10. Nxe4 {[%clk 0:02:31]}  Nxe4 {[%clk 0:02:20]} 11. dxe4 {[%clk 0:02:31]}  Bf8 {[%clk 0:02:20]} 12. f3 {[%clk 0:02:26]}  Nc6 {[%clk 0:02:19]} 13. Bd2 {[%clk 0:02:25]}  g6 {[%clk 0:02:17]} 14. Bc3 {[%clk 0:02:25]}  Bg7 {[%clk 0:02:17]} 15. Qd2 {[%clk 0:02:25]}  Qe7 {[%clk 0:02:10]} 16. Rad1 {[%clk 0:02:24]}  Rad8 {[%clk 0:02:10]} 17. Bxg7 {[%clk 0:02:24]}  Kxg7 {[%clk 0:02:09]} 18. Qd6 {[%clk 0:02:24]}  Qxd6 {[%clk 0:02:09]} 19. Rxd6 {[%clk 0:02:23]}  Ne5 {[%clk 0:02:00]} 20. b3 {[%clk 0:02:22]}  f6 {[%clk 0:02:01]} 21. Rfd1 {[%clk 0:02:21]}  Re7 {[%clk 0:01:59]} 22. Kf2 {[%clk 0:02:21]}  Nf7 {[%clk 0:01:59]} 23. R6d2 {[%clk 0:02:20]}  d6 {[%clk 0:01:59]} 24. h3 {[%clk 0:02:17]}  Rde8 {[%clk 0:02:00]} 25. Na3 {[%clk 0:02:13]}  a6 {[%clk 0:02:00]} 26. Nb1 {[%clk 0:02:13]}  Bc6 {[%clk 0:02:00]} 27. Nc3 {[%clk 0:02:13]}  b5 {[%clk 0:02:00]} 28. Nd5 {[%clk 0:01:54]}  Rb7 {[%clk 0:02:00]} 29. Rc1 {[%clk 0:01:50]}  bxc4 {[%clk 0:01:59]} 30. Rxc4 {[%clk 0:01:49]}  a5 {[%clk 0:01:59]} 31. e3 {[%clk 0:01:43]}  a4 {[%clk 0:01:57]} 32. Rb2 {[%clk 0:01:31]}  Reb8 {[%clk 0:01:53]} 33. Rc3 {[%clk 0:01:26]}  Ne5 {[%clk 0:01:33]} 34. Bf1 {[%clk 0:01:26]}  Bxd5 {[%clk 0:01:29]} 35. exd5 {[%clk 0:01:26]}  c4 {[%clk 0:01:29]} 36. f4 {[%clk 0:01:20]}  a3 {[%clk 0:01:23]} 37. Rd2 {[%clk 0:01:14]}  cxb3 {[%clk 0:01:23]} 38. Rxb3 {[%clk 0:01:11]}  Rxb3 {[%clk 0:01:22]} 39. axb3 {[%clk 0:01:11]}  Nd7 {[%clk 0:01:06]} 40. Bc4 {[%clk 0:01:08]}  Nc5 {[%clk 0:01:03]} 41. Ra2 {[%clk 0:01:05]}  Ra8 {[%clk 0:00:55]} 42. Ke1 {[%clk 0:01:03]}  Ne4 {[%clk 0:00:54]} 43. g4 {[%clk 0:01:01]}  Nc3 {[%clk 0:00:54]} 44. Ra1 {[%clk 0:01:01]}  a2 {[%clk 0:00:47]} 45. Kd2 {[%clk 0:01:01]}  Ne4+ {[%clk 0:00:47]} 46. Kc2 {[%clk 0:00:59]}  Nf2 {[%clk 0:00:47]} 47. Kb2 {[%clk 0:00:50]}  Nxh3 {[%clk 0:00:43]} 48. Rxa2 {[%clk 0:00:50]}  Re8 {[%clk 0:00:43]} 49. Ra6 {[%clk 0:00:44]}  Rxe3 {[%clk 0:00:42]} 50. Rxd6 {[%clk 0:00:44]}  Nxf4 {[%clk 0:00:43]} 51. Rd7+ {[%clk 0:00:43]}  Kh6 {[%clk 0:00:41]} 52. d6 {[%clk 0:00:37]}  Re1 {[%clk 0:00:39]} 53. Re7 {[%clk 0:00:36]}  Rd1 {[%clk 0:00:39]} 54. d7 {[%clk 0:00:36]}  Kg5 {[%clk 0:00:39]} 55. Bb5 {[%clk 0:00:36]}  Kxg4 {[%clk 0:00:36]} 56. Re8 {[%clk 0:00:35]}  h5 {[%clk 0:00:33]} 57. d8=Q {[%clk 0:00:34]}  Rxd8 {[%clk 0:00:34]} 58. Rxd8 {[%clk 0:00:35]}  h4 {[%clk 0:00:34]} 59. Ba6 {[%clk 0:00:26]}  h3 {[%clk 0:00:34]} 60. b4 {[%clk 0:00:24]}  h2 {[%clk 0:00:32]} 61. Bb7 {[%clk 0:00:24]}  Kg3 {[%clk 0:00:30]} 62. b5 {[%clk 0:00:19]}  g5 {[%clk 0:00:22]} 63. b6 {[%clk 0:00:19]}  g4 {[%clk 0:00:22]} 64. Rh8 {[%clk 0:00:17]}  Ng6 {[%clk 0:00:16]} 65. Rh6 {[%clk 0:00:16]}  Ne5 {[%clk 0:00:16]} 66. Bd5 {[%clk 0:00:15]}  Nd3+ {[%clk 0:00:06]} 67. Kc3 {[%clk 0:00:14]}  Nc5 {[%clk 0:00:07]} 68. Kc4 {[%clk 0:00:13]}  Nd7 {[%clk 0:00:06]} 69. b7 {[%clk 0:00:11]}  f5 {[%clk 0:00:05]} 70. Kb5 {[%clk 0:00:09]}  f4 {[%clk 0:00:05]} 71. Kc6 {[%clk 0:00:08]}  Nb8+ {[%clk 0:00:05]} 72. Kc7 {[%clk 0:00:08]}  Na6+ {[%clk 0:00:04]} 73. Kb6 {[%clk 0:00:08]}  f3 {[%clk 0:00:05]} 74. Kxa6 {[%clk 0:00:08]}  f2 {[%clk 0:00:05]} 75. Bc4 {[%clk 0:00:07]}  Kg2 {[%clk 0:00:05]} 76. b8=Q {[%clk 0:00:07]}  g3 {[%clk 0:00:05]} 77. Qb7+ {[%clk 0:00:06]}  Kg1 {[%clk 0:00:06]} 78. Qb1+ {[%clk 0:00:05]}  Kg2 {[%clk 0:00:06]} 79. Qf1+ {[%clk 0:00:05]}  Kf3 {[%clk 0:00:06]} 80. Qe2+ {[%clk 0:00:05]} 1-0


[Site "https://www.chess.com"]

[Event "Titled Tuesday Blitz October 31 Early 2023"]
[White "Fominykh, Maria"]
[Black "Pinero Rodriguez, Carlos Jose"]
[WhiteFideId "4142411"]
[BlackFideId "3901726"]
[WhiteElo "2294"]
[BlackElo "2489"]
[Result "0-1"]
[Round "11"]
[TimeControl "180+1"]
[Date "2023.10.31"]
[WhiteClock "0:00:00"]
[BlackClock "0:00:48"]
[Board "82"]

1. d4 {[%clk 0:02:59]}  Nf6 {[%clk 0:02:51]} 2. c4 {[%clk 0:02:59]}  e6 {[%clk 0:02:46]} 3. Nf3 {[%clk 0:02:57]}  Bb4+ {[%clk 0:02:43]} 4. Nbd2 {[%clk 0:02:57]}  d5 {[%clk 0:02:41]} 5. e3 {[%clk 0:02:55]}  O-O {[%clk 0:02:41]} 6. a3 {[%clk 0:02:52]}  Be7 {[%clk 0:02:40]} 7. Bd3 {[%clk 0:02:51]}  b6 {[%clk 0:02:37]} 8. cxd5 {[%clk 0:02:50]}  exd5 {[%clk 0:02:36]} 9. Qc2 {[%clk 0:02:46]}  Bb7 {[%clk 0:02:31]} 10. O-O {[%clk 0:02:44]}  Nbd7 {[%clk 0:02:29]} 11. Ne5 {[%clk 0:02:12]}  c5 {[%clk 0:02:21]} 12. Nxd7 {[%clk 0:02:02]}  Qxd7 {[%clk 0:02:19]} 13. dxc5 {[%clk 0:02:02]}  bxc5 {[%clk 0:02:19]} 14. b3 {[%clk 0:01:48]}  Rad8 {[%clk 0:02:10]} 15. Bb2 {[%clk 0:01:47]}  c4 {[%clk 0:02:10]} 16. Bf5 {[%clk 0:01:41]}  cxb3 {[%clk 0:02:01]} 17. Nxb3 {[%clk 0:01:38]}  Qa4 {[%clk 0:01:59]} 18. Bxf6 {[%clk 0:01:12]}  Bxf6 {[%clk 0:01:58]} 19. Bxh7+ {[%clk 0:00:57]}  Kh8 {[%clk 0:01:57]} 20. Rab1 {[%clk 0:00:55]}  g6 {[%clk 0:01:28]} 21. Bxg6 {[%clk 0:00:53]}  fxg6 {[%clk 0:01:27]} 22. Qxg6 {[%clk 0:00:48]}  Qe4 {[%clk 0:01:25]} 23. Qh6+ {[%clk 0:00:40]}  Qh7 {[%clk 0:01:24]} 24. Qxh7+ {[%clk 0:00:31]}  Kxh7 {[%clk 0:01:23]} 25. Nc5 {[%clk 0:00:27]}  Bc8 {[%clk 0:01:22]} 26. Rfd1 {[%clk 0:00:17]}  Kg6 {[%clk 0:01:20]} 27. f3 {[%clk 0:00:15]}  Rfe8 {[%clk 0:01:16]} 28. Kf2 {[%clk 0:00:14]}  Bg5 {[%clk 0:01:15]} 29. f4 {[%clk 0:00:10]}  Bh4+ {[%clk 0:01:15]} 30. g3 {[%clk 0:00:10]}  Bf6 {[%clk 0:01:16]} 31. Kf3 {[%clk 0:00:07]}  Kh5 {[%clk 0:01:14]} 32. h3 {[%clk 0:00:05]}  Kg6 {[%clk 0:01:13]} 33. g4 {[%clk 0:00:05]}  Rh8 {[%clk 0:01:10]} 34. Rh1 {[%clk 0:00:04]}  Rde8 {[%clk 0:01:07]} 35. Rbc1 {[%clk 0:00:02]}  Bb2 {[%clk 0:01:00]} 36. Rcd1 {[%clk 0:00:01]}  Rd8 {[%clk 0:00:53]} 37. Rd3 {[%clk 0:00:01]}  d4 {[%clk 0:00:52]} 38. e4 {[%clk 0:00:01]}  Bc3 {[%clk 0:00:49]} 39. f5+ {[%clk 0:00:00]}  Kg5 {[%clk 0:00:48]} 0-1


[Site "https://www.chess.com"]

[Event "Titled Tuesday Blitz October 31 Early 2023"]
[White "Karamsetty, Jeevan"]
[Black "Sargissyan, Sargis"]
[WhiteFideId "2025337"]
[BlackFideId "13303210"]
[WhiteElo "2584"]
[BlackElo "2393"]
[Result "0-1"]
[Round "11"]
[TimeControl "180+1"]
[Date "2023.10.31"]
[WhiteClock "0:00:49"]
[BlackClock "0:00:48"]
[Board "86"]

1. e4 {[%clk 0:03:00]}  c5 {[%clk 0:02:57]} 2. Nf3 {[%clk 0:03:00]}  d6 {[%clk 0:02:57]} 3. d4 {[%clk 0:03:00]}  cxd4 {[%clk 0:02:57]} 4. Nxd4 {[%clk 0:03:01]}  Nf6 {[%clk 0:02:57]} 5. Nc3 {[%clk 0:03:00]}  a6 {[%clk 0:02:57]} 6. f3 {[%clk 0:03:00]}  e5 {[%clk 0:02:55]} 7. Nb3 {[%clk 0:02:59]}  Be6 {[%clk 0:02:55]} 8. Be3 {[%clk 0:02:59]}  Be7 {[%clk 0:02:55]} 9. Qd2 {[%clk 0:02:59]}  O-O {[%clk 0:02:55]} 10. g4 {[%clk 0:02:58]}  d5 {[%clk 0:02:41]} 11. g5 {[%clk 0:02:56]}  d4 {[%clk 0:02:41]} 12. gxf6 {[%clk 0:02:53]}  Bxf6 {[%clk 0:02:41]} 13. Nc5 {[%clk 0:02:21]}  dxe3 {[%clk 0:02:26]} 14. Qxe3 {[%clk 0:02:19]}  Bh4+ {[%clk 0:02:25]} 15. Ke2 {[%clk 0:02:16]}  Nc6 {[%clk 0:02:14]} 16. Nxe6 {[%clk 0:02:06]}  fxe6 {[%clk 0:02:12]} 17. Bg2 {[%clk 0:01:34]}  Nd4+ {[%clk 0:01:27]} 18. Kf1 {[%clk 0:01:34]}  Nxc2 {[%clk 0:01:24]} 19. Qc1 {[%clk 0:01:35]}  Qd3+ {[%clk 0:01:21]} 20. Kg1 {[%clk 0:01:33]}  Nxa1 {[%clk 0:01:13]} 21. h3 {[%clk 0:01:22]}  Bg3 {[%clk 0:01:09]} 22. Nd1 {[%clk 0:01:16]}  Qd4+ {[%clk 0:01:04]} 23. Kf1 {[%clk 0:01:15]}  Rad8 {[%clk 0:01:03]} 24. Ne3 {[%clk 0:01:08]}  Nc2 {[%clk 0:00:52]} 25. Qxc2 {[%clk 0:01:02]}  Qxe3 {[%clk 0:00:52]} 26. f4 {[%clk 0:00:49]}  Rd1+ {[%clk 0:00:48]} 0-1


[Site "https://www.chess.com"]

[Event "Titled Tuesday Blitz October 31 Early 2023"]
[White "Spichkin, Alexander"]
[Black "Kim, Sergey"]
[WhiteFideId "4144074"]
[BlackFideId "13700570"]
[WhiteElo "2389"]
[BlackElo "2571"]
[Result "1-0"]
[Round "11"]
[TimeControl "180+1"]
[Date "2023.10.31"]
[WhiteClock "0:01:14"]
[BlackClock "0:01:21"]
[Board "87"]

1. f4 {[%clk 0:03:00]}  g6 {[%clk 0:02:55]} 2. Nf3 {[%clk 0:03:00]}  Bg7 {[%clk 0:02:55]} 3. d3 {[%clk 0:03:00]}  d6 {[%clk 0:02:55]} 4. e4 {[%clk 0:03:01]}  Nf6 {[%clk 0:02:54]} 5. Be2 {[%clk 0:03:01]}  O-O {[%clk 0:02:54]} 6. O-O {[%clk 0:02:59]}  c5 {[%clk 0:02:54]} 7. Nc3 {[%clk 0:03:00]}  Nc6 {[%clk 0:02:54]} 8. Qe1 {[%clk 0:03:00]}  Rb8 {[%clk 0:02:52]} 9. a4 {[%clk 0:02:58]}  a6 {[%clk 0:02:51]} 10. Qh4 {[%clk 0:02:56]}  b5 {[%clk 0:02:50]} 11. axb5 {[%clk 0:02:52]}  axb5 {[%clk 0:02:50]} 12. f5 {[%clk 0:02:53]}  Nd4 {[%clk 0:02:44]} 13. Bd1 {[%clk 0:02:51]}  b4 {[%clk 0:02:34]} 14. Ne2 {[%clk 0:02:51]}  e5 {[%clk 0:02:18]} 15. Bg5 {[%clk 0:02:43]}  gxf5 {[%clk 0:02:09]} 16. Nfxd4 {[%clk 0:02:39]}  cxd4 {[%clk 0:02:07]} 17. Ng3 {[%clk 0:02:37]}  d5 {[%clk 0:01:55]} 18. Nh5 {[%clk 0:02:32]}  Rb6 {[%clk 0:01:53]} 19. exf5 {[%clk 0:02:07]}  e4 {[%clk 0:01:45]} 20. Be2 {[%clk 0:01:41]}  Kh8 {[%clk 0:01:41]} 21. Nxg7 {[%clk 0:01:36]}  Kxg7 {[%clk 0:01:41]} 22. Bh6+ {[%clk 0:01:36]}  Kh8 {[%clk 0:01:41]} 23. Bxf8 {[%clk 0:01:36]}  Qxf8 {[%clk 0:01:40]} 24. Ra8 {[%clk 0:01:37]}  Rc6 {[%clk 0:01:32]} 25. dxe4 {[%clk 0:01:30]}  dxe4 {[%clk 0:01:31]} 26. Bb5 {[%clk 0:01:30]}  Qc5 {[%clk 0:01:25]} 27. Bxc6 {[%clk 0:01:14]}  Qxc6 {[%clk 0:01:21]} 28. Rxc8+ {[%clk 0:01:14]} 1-0


[Site "https://www.chess.com"]

[Event "Titled Tuesday Blitz October 31 Early 2023"]
[White "Pavlidou, Ekaterini"]
[Black "Bilan, Danila"]
[WhiteFideId "4213262"]
[BlackFideId "24161918"]
[WhiteElo "2326"]
[BlackElo "2476"]
[Result "0-1"]
[Round "11"]
[TimeControl "180+1"]
[Date "2023.10.31"]
[WhiteClock "0:01:28"]
[BlackClock "0:01:07"]
[Board "91"]

1. d4 {[%clk 0:03:00]}  d5 {[%clk 0:02:59]} 2. c4 {[%clk 0:03:00]}  c6 {[%clk 0:02:59]} 3. cxd5 {[%clk 0:02:58]}  cxd5 {[%clk 0:02:59]} 4. Bf4 {[%clk 0:02:59]}  Nc6 {[%clk 0:02:59]} 5. e3 {[%clk 0:02:59]}  Nf6 {[%clk 0:03:00]} 6. Nc3 {[%clk 0:02:58]}  a6 {[%clk 0:02:58]} 7. Bd3 {[%clk 0:02:57]}  Bg4 {[%clk 0:02:57]} 8. f3 {[%clk 0:02:56]}  Bd7 {[%clk 0:02:56]} 9. a3 {[%clk 0:02:51]}  e6 {[%clk 0:02:50]} 10. Bg5 {[%clk 0:02:49]}  Be7 {[%clk 0:02:45]} 11. Bxf6 {[%clk 0:02:44]}  Bxf6 {[%clk 0:02:44]} 12. f4 {[%clk 0:02:44]}  g5 {[%clk 0:02:37]} 13. g3 {[%clk 0:02:44]}  gxf4 {[%clk 0:02:37]} 14. gxf4 {[%clk 0:02:44]}  Bh4+ {[%clk 0:02:37]} 15. Kd2 {[%clk 0:02:43]}  Na5 {[%clk 0:02:24]} 16. b4 {[%clk 0:02:34]}  Nc4+ {[%clk 0:02:21]} 17. Bxc4 {[%clk 0:02:33]}  dxc4 {[%clk 0:02:22]} 18. Nf3 {[%clk 0:02:33]}  Bc6 {[%clk 0:02:18]} 19. e4 {[%clk 0:02:11]}  Qf6 {[%clk 0:02:00]} 20. Ke3 {[%clk 0:02:06]}  O-O-O {[%clk 0:01:55]} 21. a4 {[%clk 0:01:58]}  e5 {[%clk 0:01:30]} 22. dxe5 {[%clk 0:01:40]}  Rxd1 {[%clk 0:01:25]} 23. Rhxd1 {[%clk 0:01:33]}  Qe7 {[%clk 0:01:12]} 24. b5 {[%clk 0:01:30]}  Qc5+ {[%clk 0:01:08]} 25. Ke2 {[%clk 0:01:28]}  Qf2# {[%clk 0:01:07]} 0-1


[Site "https://www.chess.com"]

[Event "Titled Tuesday Blitz October 31 Early 2023"]
[White "Viskelis, Darius"]
[Black "Pinto, Daniel"]
[WhiteFideId "12800830"]
[BlackFideId "3303144"]
[WhiteElo "2320"]
[BlackElo "2438"]
[Result "1-0"]
[Round "11"]
[TimeControl "180+1"]
[Date "2023.10.31"]
[WhiteClock "0:01:36"]
[BlackClock "0:01:19"]
[Board "93"]

1. e4 {[%clk 0:03:00]}  c5 {[%clk 0:02:59]} 2. Nf3 {[%clk 0:03:00]}  Nc6 {[%clk 0:03:00]} 3. Bb5 {[%clk 0:03:00]}  g6 {[%clk 0:02:59]} 4. O-O {[%clk 0:02:59]}  Bg7 {[%clk 0:03:00]} 5. Re1 {[%clk 0:03:00]}  Nf6 {[%clk 0:02:57]} 6. h3 {[%clk 0:02:59]}  O-O {[%clk 0:02:56]} 7. c3 {[%clk 0:03:00]}  d5 {[%clk 0:02:51]} 8. e5 {[%clk 0:03:00]}  Nd7 {[%clk 0:02:51]} 9. d4 {[%clk 0:03:00]}  a6 {[%clk 0:02:46]} 10. Bxc6 {[%clk 0:02:59]}  bxc6 {[%clk 0:02:47]} 11. Bf4 {[%clk 0:02:53]}  cxd4 {[%clk 0:02:42]} 12. cxd4 {[%clk 0:02:51]}  c5 {[%clk 0:02:05]} 13. Nc3 {[%clk 0:02:41]}  Bb7 {[%clk 0:02:04]} 14. Qd2 {[%clk 0:02:29]}  Rc8 {[%clk 0:01:56]} 15. Bh6 {[%clk 0:02:26]}  Re8 {[%clk 0:01:36]} 16. Bxg7 {[%clk 0:02:25]}  Kxg7 {[%clk 0:01:37]} 17. e6 {[%clk 0:02:25]}  fxe6 {[%clk 0:01:33]} 18. Ng5 {[%clk 0:02:24]}  Nf8 {[%clk 0:01:34]} 19. Qf4 {[%clk 0:02:08]}  e5 {[%clk 0:01:22]} 20. Rxe5 {[%clk 0:01:40]}  e6 {[%clk 0:01:22]} 21. Qf7+ {[%clk 0:01:37]}  Kh8 {[%clk 0:01:21]} 22. Qxb7 {[%clk 0:01:36]}  cxd4 {[%clk 0:01:19]} 23. Nf7+ {[%clk 0:01:36]} 1-0


[Site "https://www.chess.com"]

[Event "Titled Tuesday Blitz October 31 Early 2023"]
[White "Rosh Jain"]
[Black "Schut, Han"]
[WhiteFideId "25789465"]
[BlackFideId "1005561"]
[WhiteElo "2422"]
[BlackElo "2294"]
[Result "1-0"]
[Round "11"]
[TimeControl "180+1"]
[Date "2023.10.31"]
[WhiteClock "0:01:16"]
[BlackClock "0:00:26"]
[Board "95"]

1. e4 {[%clk 0:03:00]}  c5 {[%clk 0:02:59]} 2. Nf3 {[%clk 0:03:01]}  d6 {[%clk 0:03:00]} 3. d4 {[%clk 0:03:02]}  cxd4 {[%clk 0:03:00]} 4. Nxd4 {[%clk 0:03:03]}  Nf6 {[%clk 0:03:00]} 5. Nc3 {[%clk 0:03:03]}  a6 {[%clk 0:03:01]} 6. Bg5 {[%clk 0:03:03]}  e6 {[%clk 0:03:01]} 7. Qf3 {[%clk 0:03:02]}  Be7 {[%clk 0:03:00]} 8. g4 {[%clk 0:02:59]}  Nbd7 {[%clk 0:03:00]} 9. Bd2 {[%clk 0:02:53]}  Ne5 {[%clk 0:02:53]} 10. Qg2 {[%clk 0:02:52]}  Nexg4 {[%clk 0:02:47]} 11. O-O-O {[%clk 0:02:50]}  Qb6 {[%clk 0:02:40]} 12. h3 {[%clk 0:02:35]}  e5 {[%clk 0:02:31]} 13. hxg4 {[%clk 0:01:52]}  exd4 {[%clk 0:02:30]} 14. Nd5 {[%clk 0:01:53]}  Nxd5 {[%clk 0:02:20]} 15. exd5 {[%clk 0:01:53]}  Bd7 {[%clk 0:01:39]} 16. Qe4 {[%clk 0:01:51]}  Kf8 {[%clk 0:01:25]} 17. Rxh7 {[%clk 0:01:30]}  Rg8 {[%clk 0:01:04]} 18. Bd3 {[%clk 0:01:27]}  Re8 {[%clk 0:01:01]} 19. Qf3 {[%clk 0:01:26]}  Bb5 {[%clk 0:00:44]} 20. Bg6 {[%clk 0:01:21]}  Bf6 {[%clk 0:00:44]} 21. Qxf6 {[%clk 0:01:15]}  gxf6 {[%clk 0:00:26]} 22. Rxf7# {[%clk 0:01:16]} 1-0


[Site "https://www.chess.com"]

[Event "Titled Tuesday Blitz October 31 Early 2023"]
[White "Shapiro, Daniel"]
[Black "Polaczek, Richard"]
[WhiteFideId "2001780"]
[BlackFideId "200026"]
[WhiteElo "2317"]
[BlackElo "2418"]
[Result "0-1"]
[Round "11"]
[TimeControl "180+1"]
[Date "2023.10.31"]
[WhiteClock "0:00:00"]
[BlackClock "0:00:06"]
[Board "96"]

1. d4 {[%clk 0:03:00]}  Nf6 {[%clk 0:02:59]} 2. c4 {[%clk 0:02:59]}  e6 {[%clk 0:02:59]} 3. g3 {[%clk 0:02:58]}  d5 {[%clk 0:02:58]} 4. Nf3 {[%clk 0:02:58]}  dxc4 {[%clk 0:02:57]} 5. Bg2 {[%clk 0:02:58]}  Bd7 {[%clk 0:02:58]} 6. Ne5 {[%clk 0:02:57]}  Bc6 {[%clk 0:02:58]} 7. Nxc6 {[%clk 0:02:57]}  Nxc6 {[%clk 0:02:58]} 8. e3 {[%clk 0:02:56]}  Qd7 {[%clk 0:02:57]} 9. O-O {[%clk 0:02:52]}  Rb8 {[%clk 0:02:56]} 10. Qe2 {[%clk 0:02:27]}  b5 {[%clk 0:02:55]} 11. a4 {[%clk 0:02:23]}  a6 {[%clk 0:02:53]} 12. axb5 {[%clk 0:02:23]}  axb5 {[%clk 0:02:52]} 13. Rd1 {[%clk 0:02:21]}  Be7 {[%clk 0:02:41]} 14. b3 {[%clk 0:01:45]}  cxb3 {[%clk 0:02:39]} 15. Bb2 {[%clk 0:01:46]}  O-O {[%clk 0:02:37]} 16. e4 {[%clk 0:01:46]}  Rfe8 {[%clk 0:02:29]} 17. Qd3 {[%clk 0:01:35]}  Nb4 {[%clk 0:01:51]} 18. Qxb3 {[%clk 0:01:33]}  Red8 {[%clk 0:01:32]} 19. Bc3 {[%clk 0:01:25]}  c5 {[%clk 0:01:28]} 20. Na3 {[%clk 0:01:03]}  c4 {[%clk 0:01:26]} 21. Qb1 {[%clk 0:01:00]}  Nd3 {[%clk 0:01:24]} 22. Ba5 {[%clk 0:00:43]}  Rdc8 {[%clk 0:01:23]} 23. Rxd3 {[%clk 0:00:37]}  cxd3 {[%clk 0:01:22]} 24. Qxd3 {[%clk 0:00:38]}  b4 {[%clk 0:01:09]} 25. Nc4 {[%clk 0:00:30]}  Qb5 {[%clk 0:01:07]} 26. Bf1 {[%clk 0:00:30]}  Ra8 {[%clk 0:00:56]} 27. Nb6 {[%clk 0:00:27]}  Qxd3 {[%clk 0:00:41]} 28. Bxd3 {[%clk 0:00:25]}  Rcb8 {[%clk 0:00:41]} 29. Nxa8 {[%clk 0:00:22]}  Rxa8 {[%clk 0:00:41]} 30. Bb5 {[%clk 0:00:13]}  h5 {[%clk 0:00:40]} 31. Bc6 {[%clk 0:00:13]}  Ra6 {[%clk 0:00:39]} 32. d5 {[%clk 0:00:12]}  exd5 {[%clk 0:00:38]} 33. exd5 {[%clk 0:00:13]}  Bd6 {[%clk 0:00:36]} 34. Bb5 {[%clk 0:00:10]}  Ra8 {[%clk 0:00:35]} 35. Bc4 {[%clk 0:00:09]}  Ne4 {[%clk 0:00:34]} 36. Ra2 {[%clk 0:00:08]}  Bc5 {[%clk 0:00:33]} 37. Bc7 {[%clk 0:00:08]}  Rxa2 {[%clk 0:00:31]} 38. Bxa2 {[%clk 0:00:08]}  Bxf2+ {[%clk 0:00:31]} 39. Kg2 {[%clk 0:00:08]}  Bc5 {[%clk 0:00:30]} 40. Kf3 {[%clk 0:00:08]}  Nd6 {[%clk 0:00:27]} 41. Ke2 {[%clk 0:00:08]}  Kf8 {[%clk 0:00:26]} 42. Kd3 {[%clk 0:00:08]}  Ke7 {[%clk 0:00:26]} 43. Ba5 {[%clk 0:00:07]}  Kf6 {[%clk 0:00:24]} 44. Bb1 {[%clk 0:00:07]}  Ke5 {[%clk 0:00:24]} 45. Ba2 {[%clk 0:00:06]}  f5 {[%clk 0:00:23]} 46. Bd8 {[%clk 0:00:06]}  Bg1 {[%clk 0:00:21]} 47. Bg5 {[%clk 0:00:06]}  Nf7 {[%clk 0:00:17]} 48. Bf4+ {[%clk 0:00:07]}  Kf6 {[%clk 0:00:17]} 49. d6 {[%clk 0:00:07]}  Bb6 {[%clk 0:00:16]} 50. Kc4 {[%clk 0:00:07]}  g5 {[%clk 0:00:15]} 51. Bd2 {[%clk 0:00:06]}  Nxd6+ {[%clk 0:00:15]} 52. Kxb4 {[%clk 0:00:06]}  Ne4 {[%clk 0:00:14]} 53. Bc1 {[%clk 0:00:06]}  Bg1 {[%clk 0:00:14]} 54. Bb2+ {[%clk 0:00:06]}  Kg6 {[%clk 0:00:14]} 55. h4 {[%clk 0:00:06]}  Nxg3 {[%clk 0:00:12]} 56. hxg5 {[%clk 0:00:05]}  Kxg5 {[%clk 0:00:12]} 57. Be5 {[%clk 0:00:05]}  f4 {[%clk 0:00:12]} 58. Kc3 {[%clk 0:00:06]}  h4 {[%clk 0:00:12]} 59. Kd3 {[%clk 0:00:05]}  h3 {[%clk 0:00:10]} 60. Bc7 {[%clk 0:00:04]}  h2 {[%clk 0:00:10]} 61. Bd5 {[%clk 0:00:04]}  h1=Q {[%clk 0:00:09]} 62. Bxh1 {[%clk 0:00:04]}  Nxh1 {[%clk 0:00:08]} 63. Ke4 {[%clk 0:00:04]}  Be3 {[%clk 0:00:07]} 64. Kf3 {[%clk 0:00:04]}  Ng3 {[%clk 0:00:07]} 65. Bxf4+ {[%clk 0:00:00]}  Bxf4 {[%clk 0:00:06]} 0-1


[Site "https://www.chess.com"]